[Event "9th Porticcio Open 2024"]
[Site "Porticcio"]
[Date "2024.07.01"]
[Round "1.1"]
[White "Lagarde, Maxime"]
[Black "Baroyan, Davit"]
[Result "1-0"]
[ECO "C07"]
[WhiteElo "2604"]
[BlackElo "2151"]
[Annotator "TA"]
[PlyCount "37"]
[EventDate "2024.07.01"]
[EventType "swiss"]
[EventCountry "FRA"]
[SourceTitle "playchess.com"]
[Source "ChessBase"]
[SourceQuality "1"]
[TimeControl "5400+30"]

{[%evp 9,37,25,15,16,19,4,32,25,37,36,122,117,183,185,183,185,180,156,167,162,454,446,455,485,473,482,607,602,591,587]} 1. e4 {[%emt 0:00:03]} e6 {[%emt 0:04:02]} 2. d4 {[%emt 0:00:16]} d5 {[%emt 0:00:14]} 3. Nd2 {[%emt 0:00:04]} c5 {[%emt 0:00:20]} 4. Ngf3 {[%emt 0:00:07]} a6 {[%emt 0:00:29]} 5. Bd3 {[%emt 0:00:36]} c4 {[%emt 0:01:14]} 6. Be2 {[%emt 0:00:07]} b5 {[%emt 0:00:33]} 7. O-O {[%emt 0:12:57]} Bb7 {[%emt 0:12:20]} 8. exd5 {[%emt 0:05:06] White is slightly better.} Qxd5 {[%emt 0:06:10]} 9. c3 {[%emt 0:02:44]} Nd7 {[%emt 0:13:31]} (9... Be7 $14) 10. b3 $16 {[%emt 0:01:48][%cal Rb3c4]} Rc8 {[%emt 0:06:50]} (10... Nb6 $16) 11. bxc4 $18 {[%emt 0:00:44]} bxc4 {[%emt 0:01:07]} 12. Rb1 {[%emt 0:03:59][%cal Ba1b1,Bb1b2,Bb2b7][%mdl 32]} Ngf6 {[%emt 0:04:55][%cal Bg8f6,Bf6e4,Be4c3,Bc3d1][%mdl 32]} 13. Nxc4 {[%emt 0:03:24] Black must now prevent Nb6.} Ne4 {[%emt 0:06:09][%cal Oe4c3]} 14. Ne3 {[%emt 0:05:44]} Qxa2 {[%emt 0:12:15] [#]} (14... Qc6 {was called for.}) 15. Rb2 {[%emt 0:01:12] White is clearly winning.} ({Weaker is} 15. Rxb7 Nxc3 16. Rb2 Qxb2 17. Bxb2 Nxd1 18. Rxd1 Rb8 $18) 15... Qa1 {[%emt 0:00:39]} 16. Rxb7 {[%emt 0:01:17]} Nxc3 {[%emt 0:00:15]} 17. Bb2 {[%emt 0:01:24]} Nxd1 {[%emt 0:03:17]} 18. Bxa1 {[%emt 0:00:07]} Nxe3 {[%emt 0:00:06]} 19. fxe3 {[%emt 0:00:04] Black got outplayed after the opening.   Weighted Error Value: White=0.03 (flawless) /Black=0.56.  Mistake:       	---       	Black=3      Inaccurate:     	---       	Black=1      OK:         	White=6     	Black=2      Best:        	White=3     	Black=1} 1-0

[Event "9th Porticcio Open 2024"]
[Site "Porticcio"]
[Date "2024.07.01"]
[Round "1.2"]
[White "Rosol, Philip"]
[Black "Fedorchuk, Sergey A."]
[Result "0-1"]
[ECO "E20"]
[WhiteElo "2150"]
[BlackElo "2546"]
[Annotator "TA"]
[PlyCount "54"]
[EventDate "2024.07.01"]
[EventType "swiss"]
[EventCountry "FRA"]
[SourceTitle "playchess.com"]
[Source "ChessBase"]
[SourceQuality "1"]
[TimeControl "5400+30"]

{[%evp 9,53,23,31,40,47,40,34,29,35,-39,-40,-42,-49,-68,-14,-273,-283,-318,-270,-498,-524,-492,-496,-507,-522,-512,-510,-743,-718,-1145,-1119,-1175,-699,-735,-592,-564,-566,-578,-580,-710,-674,-1188,-995,-5589,-5481,-29999]} 1. d4 {[%emt 0:00:03]} Nf6 {[%emt 0:00:13]} 2. c4 {[%emt 0:00:07]} e6 {[%emt 0:00:09]} 3. Nc3 {[%emt 0:00:14]} Bb4 {[%emt 0:00:16]} 4. f3 {[%emt 0:00:11]} Ba5 {[%emt 0:09:21]} 5. e4 {[%emt 0:01:29][%cal Be2e4,Be4e5][%mdl 32]} d5 {[%emt 0:00:13]} 6. e5 {[%emt 0:02:44]} Nfd7 {[%emt 0:00:12]} 7. f4 {[%emt 0:05:39]} c5 {[%emt 0:01:55] [#] Hoping for ...cxd4.} 8. Nf3 {[%emt 0:06:33] White is slightly better.} Nc6 {[%emt 0:12:07]} 9. Bd2 {[%emt 0:07:31]} (9. cxd5 $14 exd5 10. Be3) 9... cxd4 $15 {[%emt 0:10:16]} 10. Nb5 {[%emt 0:02:48]} O-O {[%emt 0:00:18] And now ...Nc5 would win.} 11. Bd3 {[%emt 0:26:12][%cal Od3h7]} Nc5 {[%emt 0:22:03]} (11... dxc4 $15 12. Bxc4 a6) 12. Bxh7+ $2 {[%emt 0:12:11][%mdl 8192] White does not recover from this.} Kxh7 $19 {[%emt 0:00:24]} 13. Ng5+ {[%emt 0:00:04]} Kg6 {[%emt 0:00:44]} 14. Qg4 $2 {[%emt 0:08:54]} (14. h4 {might work better.} Bxd2+ (14... dxc4 15. f5+ exf5 16. h5+ Kh6 17. Nxf7+ Kh7 18. Nxd8 $16) 15. Qxd2) 14... Bxd2+ {[%emt 0:02:22]} (14... dxc4 15. Nxe6+ Kh6 16. Qxg7+ (16. Qh3+ Qh4+ 17. Qxh4+ Kg6 18. Nxf8+ Kf5 19. Nd6#) 16... Kh5 17. Qh7+ Kg4 18. Qh3#) (14... Nxe5 15. Qg3 Bxd2+ (15... Nxc4 16. O-O $17) 16. Kxd2 Nxc4+ 17. Kc1 $19) 15. Kxd2 {[%emt 0:02:25] [#]} Nxe5 $1 {[%emt 0:00:12]} 16. Qg3 {[%emt 0:00:21]} Nxc4+ {[%emt 0:00:41]} 17. Kc1 {[%emt 0:01:11]} Kf6 {[%emt 0:01:22]} 18. Nh7+ {[%emt 0:02:21]} Ke7 {[%emt 0:00:08]} 19. Qh4+ {[%emt 0:06:02]} f6 {[%emt 0:07:33]} 20. Nxf8 {[%emt 0:00:12]} Qxf8 {[%emt 0:00:06]} 21. b3 {[%emt 0:01:50]} Nd6 {[%emt 0:03:40]} 22. Nxd4 {[%emt 0:01:53]} Bd7 {[%emt 0:00:07]} 23. Rd1 {[%emt 0:00:48]} Qh8 {[%emt 0:01:14]} 24. Qg3 {[%emt 0:00:56]} Nce4 {[%emt 0:00:32]} 25. Qg6 {[%emt 0:00:20]} Qc8+ {[%emt 0:02:30]} 26. Kb2 {[%emt 0:01:18]} Qc3+ {[%emt 0:00:13]} 27. Ka3 {[%emt 0:00:15]} Nc4# {[%emt 0:00:15] Weighted Error Value: White=0.86/Black=0.45.  Loses game:     	White=1     	---        Mistake:       	White=2     	Black=1      Inaccurate:     	White=3     	---        OK:         	White=5     	Black=5      Best:        	---       	Black=3      Brilliant:      	---       	Black=1} 0-1

[Event "9th Porticcio Open 2024"]
[Site "Porticcio"]
[Date "2024.07.01"]
[Round "1.3"]
[White "Hamdouchi, Hicham"]
[Black "Mannion, Stephen R"]
[Result "1-0"]
[ECO "C79"]
[WhiteElo "2527"]
[BlackElo "2146"]
[Annotator "TA"]
[PlyCount "86"]
[EventDate "2024.07.01"]
[EventType "swiss"]
[EventCountry "FRA"]
[SourceTitle "playchess.com"]
[Source "ChessBase"]
[SourceQuality "1"]
[TimeControl "5400+30"]

{[%evp 9,86,31,45,9,6,4,12,0,10,5,10,7,17,8,11,17,18,0,0,0,0,-42,-16,-51,0,0,0,0,0,0,0,26,23,14,28,33,39,0,55,41,106,104,99,102,104,60,69,43,76,76,76,76,76,60,67,49,315,315,322,322,322,206,327,327,654,665,666,610,660,218,652,391,652,652,633,631,510,473,166]} 1. e4 {[%emt 0:00:03]} e5 {[%emt 0:01:09]} 2. Nf3 {[%emt 0:00:38]} Nc6 {[%emt 0:00:11]} 3. Bb5 {[%emt 0:00:12]} a6 {[%emt 0:00:07]} 4. Ba4 {[%emt 0:00:05]} Nf6 {[%emt 0:00:05][%cal Bg8f6,Bf6d7,Bd7c5,Bc5e6][%mdl 32]} 5. O-O {[%emt 0:00:07]} d6 {[%emt 0:00:08]} 6. c4 {[%emt 0:03:42]} Bg4 {[%emt 0:02:05]} 7. h3 {[%emt 0:00:29]} Bxf3 {[%emt 0:00:30]} 8. Qxf3 {[%emt 0:00:30] The position is equal.} Nd7 {[%emt 0:00:30]} 9. Bxc6 {[%emt 0:00:30]} bxc6 {[%emt 0:00:30]} 10. Qd1 {[%emt 0:00:30]} Nc5 {[%emt 0:00:30]} 11. d4 {[%emt 0:00:30]} exd4 {[%emt 0:00:30]} 12. Qxd4 {[%emt 0:00:30]} Ne6 {[%emt 0:00:30]} 13. Qd1 {[%emt 0:00:30]} g6 {[%emt 0:00:30]} 14. f4 {[%emt 0:00:30][%cal Bf2f4,Bf4f5,Bf5f6][%mdl 32]} Bg7 {[%emt 0:00:30]} 15. f5 {[%emt 0:00:30]} Nc5 {[%emt 0:00:30]} 16. Qf3 {[%emt 0:00:30] [#] And now f6 would win.} O-O {[%emt 0:00:30]} (16... Bd4+ $1 $15 17. Kh1 O-O) 17. f6 $11 {[%emt 0:00:30]} Bh8 {[%emt 0:00:30]} 18. g4 $1 {[%emt 0:00:30]} Re8 {[%emt 0:00:30][%cal Oe8e6]} 19. Nc3 $36 {[%emt 0:00:30][%mdl 2048] White has the initiative.} Qc8 {[%emt 0:00:30]} 20. b3 {[%emt 0:00:30]} Qe6 {[%emt 0:00:30][%cal Oa6a5]} 21. g5 {[%emt 0:00:30]} Nxe4 {[%emt 0:00:30]} 22. Nxe4 {[%emt 0:00:30]} Qxe4 {[%emt 0:00:30]} 23. Bf4 {[%emt 0:00:30]} h6 {[%emt 0:00:30]} 24. h4 $14 {[%emt 0:00:30]} Re6 {[%emt 0:00:30]} (24... Qxf3 $14 25. Rxf3 Re4) 25. Qxe4 $16 {[%emt 0:00:30]} Rxe4 {[%emt 0:00:30]} 26. Rae1 {[%emt 0:00:30]} Rae8 {[%emt 0:00:30]} 27. Bg3 {[%emt 0:00:30]} Kf8 {[%emt 0:00:30] ...hxg5 would now be deadly.} 28. Kf2 {[%emt 0:00:30]} (28. gxh6 Kg8 29. Rxe4 Rxe4 $11) 28... c5 {[%emt 0:00:30]} 29. Rxe4 {[%emt 0:00:30]} Rxe4 {[%emt 0:00:30][%mdl 4096] Endgame. KRB-KRB} 30. Kf3 {[%emt 0:00:30]} (30. gxh6 $2 Re6 (30... Bxf6 $2 31. Kf3 $17) 31. Bf4 Rxf6 $17 (31... Bxf6 32. Kg3 $17)) 30... Re6 {[%emt 0:00:30][%cal Oh8f6]} 31. Re1 {[%emt 0:00:30] White is more active.} hxg5 {[%emt 0:00:30]} 32. hxg5 {[%emt 0:00:30] Strongly threatening Rxe6.} Ke8 $2 {[%emt 0:00:30][%mdl 8192] [#] This costs Black the game.} (32... Rxe1 $14 33. Bxe1 Ke8) 33. Rxe6+ $1 $18 {[%emt 0:00:30]} ({Not} 33. Rh1 Bxf6 34. gxf6 Rxf6+ 35. Kg2 Kd7 $16) 33... fxe6 {[%emt 0:00:30] KB-KB} 34. Be1 {[%emt 0:00:30]} Kd7 {[%emt 0:00:30]} 35. Ba5 {[%emt 0:00:30]} c6 {[%emt 0:00:30]} (35... Kd8 {is a better defense.} 36. Ke4 Kd7) 36. Kg4 {[%emt 0:00:30]} e5 $2 {[%emt 0:00:30]} (36... Kc8 37. Kf3 Kd7) 37. Bb6 {[%emt 0:00:30]} Ke8 {[%emt 0:00:30]} 38. Kf3 {[%emt 0:00:30]} Kd7 {[%emt 0:00:30]} 39. Ke4 $2 {[%emt 0:00:30]} (39. Ke3 Kc8 (39... Ke6 $2 40. Bd8 $18) 40. Ba5) 39... Ke8 {[%emt 0:00:30]} 40. Bc7 {[%emt 0:00:30]} Kd7 {[%emt 0:00:30]} 41. Ba5 {[%emt 0:00:30] White is clearly winning.} Ke6 {[%emt 0:00:30]} 42. Bd8 {[%emt 0:00:30]} d5+ {[%emt 0:00:30]} 43. Ke3 {[%emt 0:00:30]} Kf7 $2 {[%emt 0:00:30] Weighted Error Value: White=0.27 (precise) /Black=0.35.  Loses game:     	---       	Black=1      Mistake:       	---       	Black=5      Inaccurate:     	White=4     	Black=1      OK:         	White=13    	Black=18     Best:        	White=2     	---        Strong:       	White=2     	---} (43... Kd7 {is tougher.} 44. Be7 Ke6) 1-0

[Event "9th Porticcio Open 2024"]
[Site "Porticcio"]
[Date "2024.07.01"]
[Round "1.4"]
[White "Martin, Nils"]
[Black "Clarke, Brandon G I"]
[Result "0-1"]
[ECO "B27"]
[WhiteElo "2138"]
[BlackElo "2498"]
[Annotator "TA"]
[PlyCount "86"]
[EventDate "2024.07.01"]
[EventType "swiss"]
[EventCountry "FRA"]
[SourceTitle "playchess.com"]
[Source "ChessBase"]
[SourceQuality "1"]
[TimeControl "5400+30"]

{[%evp 11,86,23,22,24,22,8,45,-22,26,-167,-184,-160,-120,-109,3,-49,-40,-39,-31,-54,-56,-51,-37,-38,0,-33,-14,-69,-89,-79,-62,-150,-75,-79,-11,-14,-7,0,0,0,-5,-80,-78,-166,-46,-128,-41,-31,0,-137,0,-40,-43,-59,24,-85,-90,-110,-119,-74,-35,-180,-148,-173,-172,-172,-172,-189,-175,-264,-260,-295,-288,-422,-416,-976,-929]} 1. e4 {[%emt 0:00:07]} c5 {[%emt 0:00:02]} 2. Nf3 {[%emt 0:00:08]} g6 {[%emt 0:00:40]} 3. d4 {[%emt 0:00:07]} cxd4 {[%emt 0:00:08]} 4. Qxd4 {[%emt 0:00:04]} Nf6 {[%emt 0:00:14]} 5. e5 {[%emt 0:00:04]} Nc6 {[%emt 0:00:12]} 6. Qa4 {[%emt 0:00:03]} Nd5 {[%emt 0:00:29]} 7. Qb3 {[%emt 0:00:12]} e6 {[%emt 0:04:47]} 8. Bg5 {[%emt 0:09:28]} Qa5+ {[%emt 0:01:57]} (8... Nd4 $5 9. Bxd8 Nxb3 10. axb3 Kxd8 $11) 9. Nbd2 {[%emt 0:01:51]} (9. Bd2 $1 $14 Qb6 10. Bc4) 9... h6 {[%emt 0:18:28]} (9... Bg7 $142) 10. c4 $2 {[%emt 0:06:59]} (10. Bh4 $11) 10... hxg5 $19 {[%emt 0:02:05]} 11. cxd5 {[%emt 0:00:07]} g4 {[%emt 0:29:49]} 12. dxc6 {[%emt 0:04:03]} bxc6 {[%emt 0:03:25]} (12... gxf3 $17 13. O-O-O (13. cxb7 $2 Bh6 $19) 13... fxg2 (13... dxc6 14. Nxf3 Bg7 15. Qd3 $11) (13... Qxe5 14. cxd7+ Bxd7 15. Kb1 $17) (13... bxc6 14. Nxf3 Bg7 15. Re1 $17) 14. cxd7+ Bxd7 15. Bxg2 Bh6 (15... Qxe5 $2 16. Qxb7 Rc8+ 17. Kb1 $17)) 13. Ng5 {[%emt 0:10:20]} (13. Nd4 $11) 13... Qxe5+ $15 {[%emt 0:06:19]} 14. Nge4 $1 {[%emt 0:00:50]} Rb8 {[%emt 0:08:05]} 15. Qc3 {[%emt 0:02:03]} Qxc3 {[%emt 0:05:14]} 16. bxc3 {[%emt 0:02:31]} f5 {[%emt 0:02:09]} 17. Ng3 {[%emt 0:01:28]} Rb2 {[%emt 0:03:30]} 18. Bc4 {[%emt 0:01:48]} Bc5 {[%emt 0:06:28]} 19. Ngf1 {[%emt 0:05:17]} (19. Rb1 $11 Rxb1+ 20. Nxb1) 19... Rc2 {[%emt 0:00:56] Black is much more active. The white rooks are passive.} 20. Ne3 {[%emt 0:11:55]} Rxc3 {[%emt 0:00:55] ...g3 would now be deadly.} 21. Ke2 {[%emt 0:00:47]} (21. Nd1 $15 Ra3 22. Rc1) 21... Bxe3 {[%emt 0:02:29]} (21... e5 $142 {And now ...d5 would win.} 22. Rac1 (22. Nb1 $2 Rxc4 23. Nxc4 Ba6 $19) 22... Rxc1 23. Rxc1 Ke7 (23... Rxh2 $2 24. Bd3 $19)) 22. fxe3 $17 {[%emt 0:00:27] [#]} Rxc4 {[%emt 0:00:23]} 23. Nxc4 $11 {[%emt 0:00:32]} Ba6 {[%emt 0:00:02]} 24. Kd3 {[%emt 0:00:58]} d5 $1 {[%emt 0:00:09]} 25. Kd4 {[%emt 0:00:27]} dxc4 {[%emt 0:02:50][%mdl 4096] Endgame. KRR-KRB} 26. Kc5 {[%emt 0:03:44]} (26. Rhd1 $11) 26... Ke7 $17 {[%emt 0:00:28]} 27. Rad1 {[%emt 0:01:58] [#]} (27. h3 $17) 27... Bb5 {[%emt 0:00:45]} (27... c3 $1 $19 {aiming for ...g5.} 28. a4 g5 (28... c2 $2 29. Rd2 $19)) 28. Ra1 {[%emt 0:02:57]} (28. Kb4 $15) 28... Ba4 {[%emt 0:00:45]} ({Black should play} 28... c3 $17 {Hoping for ...c2.} 29. Kd4 c2 (29... Rd8+ $2 30. Kxc3 Rd3+ 31. Kc2 $19)) 29. Rac1 $15 {[%emt 0:01:52]} Bb5 {[%emt 0:00:43]} (29... g5 $15) 30. Ra1 $1 $17 {[%emt 0:00:17] [#]} Ba4 {[%emt 0:00:01]} ({Better is} 30... c3 $1 $17 {White must now prevent ...c2.} 31. Kd4 c2 (31... Rd8+ $2 32. Kxc3 Rd3+ 33. Kc2 $19)) 31. Rac1 $15 {[%emt 0:00:09][%cal Oc5b4]} Rd8 {[%emt 0:01:01]} 32. Rxc4 {[%emt 0:01:52]} Rd5+ {[%emt 0:00:04]} 33. Kb4 {[%emt 0:00:01][%mdl 1024] White has compensation.} Bb5 {[%emt 0:00:04]} 34. Rc3 {[%emt 0:05:53]} Rd2 {[%emt 0:00:50][%csl LRa2,LRg2] Strongly threatening ...a5+.} 35. a4 {[%emt 0:00:56]} a5+ {[%emt 0:00:17]} 36. Ka3 {[%emt 0:01:26]} (36. Kxa5 $15 Ra2 37. Kb4 Rxa4+ (37... Bxa4 38. Ra3 $11) 38. Kc5) 36... Bd3 $19 {[%emt 0:00:10]} 37. Rxc6 {[%emt 0:00:31]} Be4 {[%emt 0:00:23]} (37... Rxg2 $2 38. Rc5 $19) 38. Rc5 {[%emt 0:01:10]} Rd3+ {[%emt 0:00:38]} ({Resist} 38... Rxg2 39. Rxa5 Re2 40. Ra1 $19) 39. Kb2 {[%emt 0:00:08]} Rxe3 {[%emt 0:00:29]} 40. Rxa5 {[%emt 0:00:13]} (40. Rg1 $142) 40... Re2+ {[%emt 0:00:20]} 41. Kb3 {[%emt 0:01:59]} Rxg2 {[%emt 0:00:52]} ({But not} 41... Bxg2 42. Rc1) 42. Re5 {[%emt 0:00:25]} (42. Ra7+ {might work better.} Kf6 43. Rh7 Bd5+ 44. Kc3) 42... Re2 {[%emt 0:01:17]} 43. a5 {[%emt 0:00:32]} (43. Rc1 $142) 43... Bc2+ {[%emt 0:00:18] Weighted Error Value: White=0.53/Black=0.28 (precise) .  Loses game:     	White=1     	---        Mistake:       	White=11    	Black=8      Inaccurate:     	White=2     	Black=3      OK:         	White=10    	Black=13     Best:        	White=2     	Black=8      Strong:       	White=2     	Black=1} 0-1

[Event "9th Porticcio Open 2024"]
[Site "Porticcio"]
[Date "2024.07.01"]
[Round "1.5"]
[White "Bailet, Pierre"]
[Black "Grigorian, Roudolph"]
[Result "1-0"]
[ECO "B12"]
[WhiteElo "2491"]
[BlackElo "2116"]
[Annotator "TA"]
[PlyCount "75"]
[EventDate "2024.07.01"]
[EventType "swiss"]
[EventCountry "FRA"]
[SourceTitle "playchess.com"]
[Source "ChessBase"]
[SourceQuality "1"]
[TimeControl "5400+30"]

{[%evp 16,75,31,20,58,32,39,24,43,0,37,29,46,36,39,25,29,34,36,9,34,15,61,56,64,79,79,77,179,191,177,111,114,99,105,117,119,86,183,184,175,7,202,205,541,640,1207,1150,1251,495,544,533,831,514,541,525,523,534,517,504,464,393]} 1. e4 {[%emt 0:00:17]} c6 {[%emt 0:00:17][%cal Bc7c6,Bc6c5][%mdl 32]} 2. d4 {[%emt 0:00:48]} d5 {[%emt 0:00:10]} 3. e5 {[%emt 0:00:17]} Bf5 {[%emt 0:00:15]} 4. Nf3 {[%emt 0:00:49]} e6 {[%emt 0:00:21]} 5. Be2 {[%emt 0:00:12]} c5 {[%emt 0:00:41]} 6. O-O {[%emt 0:02:34]} Nc6 {[%emt 0:01:32]} 7. c3 {[%emt 0:02:04]} Bg4 {[%emt 0:16:52]} 8. Nbd2 {[%emt 0:11:29]} cxd4 {[%emt 0:00:49]} 9. cxd4 {[%emt 0:01:52]} Qb6 {[%emt 0:02:55][%cal Og8h6]} 10. h3 {[%emt 0:00:52]} Bh5 {[%emt 0:00:29]} 11. Nb3 {[%emt 0:00:42]} Nge7 {[%emt 0:02:47][%cal Bg8e7,Be7f5,Bf5e7][%mdl 32] White has an edge.} 12. a4 {[%emt 0:06:06]} a5 {[%emt 0:05:32]} 13. Bb5 {[%emt 0:07:44]} Bxf3 {[%emt 0:07:24]} 14. Qxf3 {[%emt 0:00:40]} Nf5 {[%emt 0:00:08][%cal Of8e7]} 15. Qd3 {[%emt 0:04:53]} Bb4 {[%emt 0:03:36]} 16. g4 {[%emt 0:03:38]} Nfe7 {[%emt 0:01:28]} 17. Be3 {[%emt 0:00:09]} h5 {[%emt 0:06:17]} 18. Kg2 {[%emt 0:00:45]} hxg4 {[%emt 0:08:23]} (18... Ng6 $11) 19. hxg4 $14 {[%emt 0:00:11]} f5 {[%emt 0:00:46][%cal Bf7f5,Bf5g4][%mdl 32]} 20. Bg5 {[%emt 0:06:51]} (20. exf6 {simplifies} gxf6 21. Bf4 Rg8 22. Qe2) 20... fxg4 {[%emt 0:06:04]} 21. Bxe7 {[%emt 0:01:03]} Bxe7 {[%emt 0:00:17]} (21... Kxe7 $16 {was worth a try.} 22. Qg6 Rag8) 22. Qg6+ $18 {[%emt 0:04:14]} Kd7 {[%emt 0:00:07] [#]} 23. Rh1 {[%emt 0:03:50] Inhibits Rh3.} (23. Qxg4 $6 Raf8 $16) (23. Rac1 $1 $18) 23... Rh3 $16 {[%emt 0:04:45]} 24. Rxh3 {[%emt 0:06:55]} gxh3+ {[%emt 0:00:06]} 25. Kxh3 {[%emt 0:01:25][%cal Oh3g2] Hoping for Kg2!} Rf8 {[%emt 0:00:49] [#]} 26. Kg3 {[%emt 0:04:14][%cal Oa1c1] Against Rf3+. Strongly threatening Rc1!} (26. Qxg7 $2 Rf3+ (26... Rxf2 27. Bxc6+ Qxc6 28. Nc5+ Kd8 29. Rc1 $16) 27. Kg2 Rxb3 $19) 26... Kc8 {[%emt 0:21:07]} (26... Qd8 $16) 27. Qxe6+ {[%emt 0:03:16]} Kb8 {[%emt 0:00:03]} 28. f4 $2 {[%emt 0:05:31]} (28. Qxd5 $2 Nxe5 $19) ({White should try} 28. Rh1 $18) 28... Ka7 $2 {[%emt 0:03:50] This costs Black the game.} (28... Rh8 $1 $11 {and Black stays safe.}) 29. Rh1 $18 {[%emt 0:02:14] Black must now prevent Rh7. Active counter play!} (29. Qxd5 $6 Nb4 30. Qe4 Rh8 $14) 29... Qc7 $2 {[%emt 0:03:29]} (29... Bb4 30. Rh3 (30. Qxd5 Ne7 $15) 30... Bd2) 30. Bxc6 {[%emt 0:01:11] White is clearly winning.} bxc6 {[%emt 0:01:15] [#]} 31. Nxa5 $1 {[%emt 0:01:15][%mdl 512]} Kb6 {[%emt 0:01:13]} (31... Rc8 32. Rc1) 32. Nb3 {[%emt 0:04:22]} (32. Nxc6 Qxc6 33. Qxe7 Qg6+ 34. Qg5 Qd3+ 35. Kg4 (35. Kf2 Qxd4+ 36. Kg3 Qd3+ 37. Kg4 Ka5 $11) 35... Qe2+ 36. Kg3 Qe3+ (36... Qd3+ 37. Kf2 $11) 37. Kg4 (37. Kh2 Qf2+ 38. Kh3 Qf3+ 39. Kh4 Rh8+) 37... Qe2+ 38. Kg3 Qe3+ (38... Qd3+ 39. Kg4 $11) 39. Kg4 (39. Kh2 Qf2+ 40. Kh3 Qf3+ 41. Kh4 Rh8+) 39... Qe2+ $11) (32. Rc1 $142 {[%cal Rc1c6]} Kxa5 33. Rxc6 (33. Qxc6 Qxc6 34. Rxc6 Kxa4 $11)) 32... Ra8 {[%emt 0:00:06]} 33. a5+ {[%emt 0:01:05][%cal Ba4a5,Ba5a6,Ba6a7][%mdl 32]} Kb5 {[%emt 0:00:13]} 34. Qg6 {[%emt 0:00:59] Threatening mate with Qd3+.} Ka6 {[%emt 0:01:41][%cal Bb5a6,Ba6b7,Bb7b6][%mdl 32]} 35. Rc1 {[%emt 0:02:10]} (35. Qxg7 $2 Bh4+ 36. Rxh4 Qxg7+ $19) 35... Kb7 {[%emt 0:00:17]} 36. f5 {[%emt 0:01:33]} (36. Qxg7 $2 Bh4+ 37. Kf3 Qxg7 $19) 36... Rh8 {[%emt 0:00:25]} 37. a6+ {[%emt 0:01:21]} (37. Qxg7 $2 Bh4+ 38. Kf3 Qxg7 $19) 37... Kb6 {[%emt 0:00:09]} 38. a7 {[%emt 0:00:45] Weighted Error Value: White=0.47/Black=0.50.  Loses game:     	---       	Black=1      Missed win:     	White=1     	---        Mistake:       	White=1     	Black=4      Inaccurate:     	White=4     	Black=3      OK:         	White=6     	Black=7      Best:        	White=2     	Black=4      Brilliant:      	White=1     	---} (38. Qxg7 Bh4+ 39. Kf3 Qxg7 40. a7 Qg3+ (40... Qxa7 $2 41. Rc3 $19) 41. Ke2 Bg5 (41... Qxb3 {is a self mate.} 42. f6 Qxb2+ 43. Ke3 Qxc1+ 44. Kd3 Kxa7 45. e6 Bg5 46. Ke2 Rh2+ 47. Kf3 Qf4#) (41... Qxb3 {leads to mate.} 42. Rg1 Qc2+ 43. Ke3)) 1-0